bitfinex-derivatives/quotes_BTCF0:USTF0_20240903
["timestamp","ask_amount","ask_price","bid_price","bid_amount"]
[1725343556221,0.0004,59016.0,59015.0,0.00866114]
[1725343556530,0.0004,59016.0,59015.0,0.00025401]
[1725343556929,0.0004,59016.0,59015.0,0.0088917]
[1725343557229,0.0004,59016.0,59015.0,0.00025401]
[1725343557627,0.0004,59016.0,59015.0,0.00856111]
[1725343557932,0.0004,59016.0,59015.0,0.00025401]
[1725343558422,0.0004,59016.0,59015.0,0.00869759]
[1725343558728,0.0004,59016.0,59015.0,0.00025401]
[1725343559131,0.0004,59016.0,59015.0,0.00881456]
[1725343559433,0.0004,59016.0,59015.0,0.00025401]
[1725343559931,0.0004,59016.0,59015.0,0.00889594]
[1725343560132,0.0004,59016.0,59015.0,0.00025401]
[1725343560332,0.0004,59016.0,59015.0,0.06802901]
[1725343560728,0.0004,59016.0,59015.0,0.07635476]
[1725343561734,0.00049693,59016.0,59015.0,0.07635476]
[1725343562132,0.0004,59016.0,59015.0,0.07635476]
[1725343562433,0.05055153,59016.0,59015.0,0.07635476]
[1725343563436,0.05061613,59016.0,59015.0,0.07635476]
[1725343564235,0.0004,59016.0,59015.0,0.00025401]
[1725343564424,0.1104,59016.0,59015.0,0.00025401]
[1725343565231,0.19400982,59016.0,59015.0,0.00025401]
[1725343565437,0.1379637,59016.0,59015.0,0.00025401]
[1725343565733,0.13786677,59016.0,59015.0,0.00025401]
[1725343566129,0.46597227,59016.0,59015.0,0.00025401]
[1725343566326,0.36564077,59016.0,59015.0,0.00025401]
[1725343567641,0.72644077,59016.0,59015.0,0.00025401]
[1725343568241,0.75916738,59016.0,59015.0,0.00025401]
[1725343568549,0.75926431,59016.0,59015.0,0.00025401]
[1725343568741,0.75916738,59016.0,59015.0,0.00025401]
[1725343572541,0.87644053,59016.0,59015.0,0.00025401]
[1725343572833,0.75916738,59016.0,59015.0,0.00025401]
[1725343573043,0.72644077,59016.0,59015.0,0.00025401]
[1725343573243,0.59916929,59016.0,59015.0,0.00025401]
[1725343573441,0.75926622,59016.0,59015.0,0.00025401]
[1725343573636,0.7265377,59016.0,59015.0,0.00025401]
[1725343573942,0.72644077,59016.0,59015.0,0.00025401]
[1725343574641,0.7264446,59016.0,59015.0,0.00025401]
[1725343576641,0.06778,59011.0,59010.0,0.0035084]
[1725343576852,0.06778,59011.0,59006.0,0.23152922]
[1725343576853,0.067785,59007.0,59006.0,0.23152922]
[1725343577145,0.36535253,59007.0,59006.0,0.23152922]
[1725343577335,0.3652556,59007.0,59006.0,0.23152922]
[1725343577939,0.4330406,59007.0,59006.0,0.23152922]
[1725343578151,1.57427192,59007.0,59006.0,0.23152922]
[1725343578349,0.06779,59002.0,59001.0,0.00225401]
[1725343578546,0.72655753,59002.0,59001.0,0.00225401]
[1725343578740,0.0678,58994.0,58992.0,0.0039]
[1725343578941,0.40849693,58993.0,58982.0,0.0454]
[1725343579242,0.40849693,58993.0,58977.0,0.067819]
[1725343579243,0.067818,58979.0,58977.0,0.0039]
[1725343579546,0.167818,58979.0,58977.0,0.00350553]
[1725343579744,0.167818,58979.0,58972.0,0.00025422]
[1725343579745,0.16,58978.0,58972.0,0.00025422]
[1725343579944,0.067823,58974.0,58972.0,0.00025422]
[1725343580142,0.3608,58973.0,58972.0,0.00025422]
[1725343580337,0.3608,58973.0,58963.0,0.0039]
[1725343580338,0.067834,58964.0,58963.0,0.0039]
[1725343580542,0.067834,58964.0,58957.0,0.05078989]
[1725343580543,0.067839,58960.0,58957.0,0.05078989]
[1725343580753,0.21010539,58959.0,58951.0,0.16]
[1725343581043,0.21010539,58959.0,58947.0,0.00855888]
[1725343581044,0.05009983,58960.0,58958.0,0.16]
[1725343581345,0.05009983,58960.0,58946.0,0.3608]
[1725343581346,0.3608,58964.0,58959.0,0.16]
[1725343581535,0.3608,58964.0,58960.0,0.0481]
[1725343582344,9.693e-05,58963.0,58960.0,0.0972]
[1725343582645,0.3608,58964.0,58960.0,0.0972]
[1725343582842,0.3608,58964.0,58963.0,0.16]
[1725343583047,0.00025422,58967.0,58963.0,0.5208]
[1725343583345,0.00025422,58967.0,58963.0,0.3608]
[1725343583346,9.693e-05,58966.0,58963.0,0.3608]
[1725343583558,0.00025422,58967.0,58965.0,0.16]
[1725343583846,9.693e-05,58966.0,58965.0,0.16]
[1725343584051,0.0039,58976.0,58966.0,0.50876]
[1725343584248,0.3608,58979.0,58975.0,0.227821]
[1725343584549,0.3608,58979.0,58976.0,0.0481]
[1725343585052,0.0039,58988.0,58978.0,0.16]
[1725343585253,0.3608,58992.0,58978.0,0.16]
[1725343585254,0.00025422,58983.0,58978.0,0.067818]
[1725343585449,0.00025422,58983.0,58982.0,0.16]
[1725343585647,0.00025422,58983.0,58982.0,0.5208]
[1725343585947,0.0039,58992.0,58982.0,1.67554]
[1725343586249,0.06779,59003.0,58985.0,0.06781]
[1725343586250,0.3608,58993.0,58985.0,0.06781]
[1725343586438,0.3608,58993.0,58986.0,0.008296]
[1725343586647,0.3608,58993.0,58987.0,0.16]
[1725343587243,0.3608,58993.0,58987.0,0.2087]
[1725343588442,0.00025422,58996.0,58987.0,0.2087]
[1725343589261,0.00025422,58996.0,58992.0,0.16]
[1725343589852,0.00025422,58996.0,58988.0,0.16]
[1725343590444,0.0008,58989.0,58988.0,0.16]
[1725343592054,0.0008,58989.0,58987.0,0.0487]
[1725343592256,0.0008,58988.0,58987.0,0.0487]
[1725343593943,0.06781,58985.0,58984.0,0.00025422]
[1725343594156,0.70861,58985.0,58984.0,0.00025422]
[1725343594649,0.70941,58985.0,58984.0,0.00025422]
[1725343594954,0.54941,58985.0,58984.0,0.00025422]
[1725343596258,0.54941,58985.0,58984.0,0.16025422]
[1725343596665,0.4816,58985.0,58984.0,0.16025422]
[1725343597062,0.1208,58985.0,58984.0,0.16025422]
[1725343597666,0.1208,58985.0,58984.0,0.16879259]
[1725343597959,0.1208,58985.0,58984.0,0.52959259]
[1725343598356,0.1208,58985.0,58984.0,1.63819259]
[1725343598569,0.1208,58985.0,58984.0,1.03819259]
[1725343598755,0.1208,58985.0,58984.0,0.52105422]
[1725343598965,0.1208,58985.0,58984.0,0.36105422]
[1725343599151,0.1208,58985.0,58984.0,0.52105422]
[1725343599347,0.1208,58985.0,58984.0,0.52949589]
[1725343599552,0.16,58991.0,58984.0,1.63809589]
[1725343599853,0.00025422,58996.0,58990.0,0.3608]
[1725343600056,0.00025422,58996.0,58995.0,0.16]
[1725343600967,0.00025422,58996.0,58995.0,0.588598]
[1725343603156,0.00025422,58996.0,58995.0,0.59212687]
[1725343605261,0.00025422,58996.0,58995.0,0.52432887]
[1725343605467,0.04025422,58996.0,58995.0,0.52432887]
[1725343606770,0.04025422,58996.0,58995.0,0.5208]
[1725343607469,0.00025422,58996.0,58995.0,0.5208]
[1725343608858,0.00025422,58996.0,58995.0,0.588598]
[1725343609058,0.00025422,58996.0,58995.0,1.697118]
[1725343610165,0.06706141,58996.0,58995.0,1.697118]
[1725343611058,0.06706141,58996.0,58995.0,1.097118]
[1725343611257,0.00025422,58996.0,58995.0,1.697118]
[1725343612064,0.00025422,58996.0,58995.0,0.588598]
[1725343612365,0.00025422,58996.0,58995.0,0.5208]
[1725343612764,0.02772941,58996.0,58995.0,0.5208]
[1725343613067,0.08385203,58996.0,58995.0,0.5208]
[1725343613263,0.02772864,58996.0,58995.0,0.5208]
[1725343617364,0.02772864,58996.0,58995.0,0.16]
[1725343618179,0.05047136,58996.0,58995.0,0.16]
[1725343621767,0.05047136,58996.0,58995.0,0.5208]
[1725343622274,0.05047136,58996.0,58995.0,0.59213359]
[1725343623467,0.00025422,58996.0,58995.0,0.59213359]
[1725343623969,0.04266087,58998.0,58995.0,0.52433559]
[1725343624171,0.0515,59006.0,59002.0,0.06779]
[1725343624172,0.06695619,59003.0,59002.0,0.06779]
[1725343624374,0.0515,59006.0,59003.0,0.067789]
[1725343624566,0.0515,59006.0,59005.0,0.1604]
[1725343624567,0.0615,59006.0,59005.0,0.1604]
[1725343624762,0.0615,59006.0,59005.0,0.16]
[1725343625069,0.07897271,59006.0,59005.0,0.16]
[1725343625259,0.17948175,59006.0,59005.0,0.227787]
[1725343625466,0.02747271,59006.0,59005.0,0.227787]
[1725343625661,0.00025422,59011.0,59005.0,0.227787]
[1725343625662,0.10050904,59010.0,59007.0,0.067784]
[1725343625863,0.02747014,59009.0,59008.0,0.067783]
[1725343626167,0.02746954,59009.0,59007.0,0.3608]
[1725343626373,0.0004,59008.0,59007.0,0.3608]
[1725343626568,0.00025422,59011.0,59007.0,0.3608]
[1725343626569,0.08405738,59011.0,59008.0,0.5084]
[1725343626875,0.00025422,59011.0,59010.0,0.0004]
[1725343627069,0.00025422,59011.0,59010.0,0.1604]
[1725343627267,0.00025422,59011.0,59010.0,1.2688]
[1725343627457,0.06727961,59011.0,59010.0,1.2688]
[1725343627664,0.00025422,59011.0,59010.0,1.2688]
[1725343627862,0.0672804,59011.0,59010.0,1.336581]
[1725343628064,0.0672804,59011.0,59010.0,0.228181]
[1725343628271,0.00025422,59011.0,59010.0,0.228181]
[1725343629472,0.06727352,59011.0,59010.0,0.228181]
[1725343629769,0.00025422,59011.0,59010.0,0.228181]
[1725343631468,0.00025422,59011.0,59010.0,0.298181]
[1725343633875,0.00025422,59011.0,59010.0,1.406581]
[1725343635576,0.00025422,59011.0,59010.0,0.2304]
[1725343635772,0.00025422,59011.0,59010.0,0.298181]
[1725343636367,0.00025422,59011.0,59010.0,1.406581]
[1725343637072,0.0670193,59018.0,59010.0,1.406581]
[1725343637269,0.0670193,59019.0,59017.0,0.658973]
[1725343637479,0.0670193,59020.0,59019.0,0.067771]
[1725343637776,0.0670193,59021.0,59019.0,0.30606284]
[1725343637980,0.0670193,59021.0,59020.0,0.2304]
[1725343638171,0.0670193,59022.0,59020.0,0.29817]
[1725343638370,0.0670193,59022.0,59021.0,0.2304]
[1725343638566,0.0670193,59022.0,59021.0,0.23]
[1725343638884,0.0670193,59023.0,59021.0,0.23]
[1725343639087,0.0670193,59023.0,59022.0,0.2304]
[1725343639979,0.0670193,59024.0,59023.0,0.067766]
[1725343640180,0.0670193,59024.0,59023.0,0.298166]
[1725343640181,0.02746185,59024.0,59023.0,0.298166]
[1725343640371,0.10076326,59026.0,59024.0,0.067765]
[1725343640372,0.02746185,59025.0,59024.0,0.067765]
[1725343640577,0.08362435,59025.0,59024.0,0.068165]
[1725343641371,0.08387857,59026.0,59024.0,0.068165]
[1725343641572,0.08387857,59026.0,59025.0,0.068164]
[1725343641573,0.00025422,59026.0,59025.0,0.068164]
[1725343645381,0.00025422,59026.0,59025.0,0.428964]
[1725343645783,0.06711343,59026.0,59025.0,0.428964]
[1725343645983,0.00025422,59026.0,59025.0,0.428964]
[1725343647494,0.06685921,59031.0,59030.0,0.067758]
[1725343647689,0.06685921,59031.0,59030.0,0.428958]
[1725343648295,0.0559,59035.0,59031.0,0.067756]
[1725343648597,0.0559,59035.0,59034.0,0.2304]
[1725343649006,0.123653,59035.0,59034.0,0.2304]
[1725343649191,0.243653,59035.0,59034.0,0.2304]
[1725343649387,0.243653,59035.0,59034.0,0.0004]
[1725343649597,0.31051221,59035.0,59034.0,0.0004]
[1725343651013,1.581813,59035.0,59034.0,0.0004]
[1725343651503,1.66543735,59035.0,59034.0,0.0004]
[1725343651802,1.66542325,59035.0,59034.0,0.0004]
[1725343652303,1.66542324,59035.0,59034.0,0.0004]
[1725343652488,1.60927419,59035.0,59034.0,0.0004]
[1725343652694,1.61275544,59035.0,59034.0,0.0004]
[1725343653303,1.37927419,59035.0,59034.0,0.0004]
[1725343655295,1.41199139,59035.0,59034.0,0.0004]
[1725343657905,0.81199139,59035.0,59034.0,0.0004]
[1725343658598,1.41199139,59035.0,59034.0,0.0004]
[1725343660093,0.66463139,59035.0,59034.0,0.0004]
[1725343661196,2.00279139,59035.0,59034.0,0.0004]
[1725343661393,2.00279139,59035.0,59027.0,0.00025422]
[1725343661394,0.067761,59028.0,59027.0,0.00025422]
[1725343661601,0.90633297,59028.0,59027.0,0.00025422]
[1725343661800,2.00086464,59028.0,59027.0,0.00025422]
[1725343662001,1.95737939,59028.0,59027.0,0.00025422]
[1725343663008,0.067773,59018.0,59014.0,0.0039]
[1725343663209,0.0004,59015.0,59014.0,0.00347107]
[1725343663401,0.0804,59015.0,59013.0,0.067778]
[1725343663710,0.0004,59014.0,59013.0,0.067778]
[1725343664007,0.0604,59014.0,59013.0,0.067778]
[1725343664797,0.0604,59014.0,59012.0,0.23]
[1725343665006,0.0004,59013.0,59012.0,0.23]
[1725343665305,0.1204,59013.0,59012.0,0.23]
[1725343665700,0.1204,59013.0,59012.0,0.23352089]
[1725343666213,0.0004,59013.0,59012.0,0.23352089]
[1725343666709,0.0904,59013.0,59012.0,0.23352089]
[1725343668207,0.0004,59013.0,59012.0,0.23352089]
[1725343668411,0.06740313,59013.0,59012.0,0.23352089]
[1725343669104,0.0004,59013.0,59012.0,0.23352089]
[1725343669916,0.0004,59013.0,59012.0,0.59432089]
[1725343672916,0.0004,59013.0,59012.0,0.66209989]
[1725343676404,0.0004,59013.0,59012.0,0.71288978]
[1725343678316,0.08424028,59013.0,59012.0,0.66209989]
[1725343678514,0.0004,59013.0,59012.0,0.66209989]
[1725343679112,0.02786569,59013.0,59012.0,0.66209989]
[1725343680227,0.02786569,59013.0,59012.0,0.30129989]
[1725343680426,0.02786569,59013.0,59012.0,0.66209989]
[1725343680615,0.02786569,59013.0,59012.0,0.00352089]
[1725343680616,0.14786569,59013.0,59012.0,0.00352089]
[1725343680809,0.14786569,59013.0,59011.0,0.23]
[1725343681107,0.02786835,59012.0,59011.0,0.23]
[1725343681311,0.17059408,59012.0,59011.0,0.23]
[1725343681512,0.13786835,59012.0,59011.0,0.23]
[1725343681817,0.02786835,59012.0,59011.0,0.65858]
[1725343682014,0.02786835,59012.0,59011.0,0.51858]
[1725343683317,0.02786835,59012.0,59011.0,0.42858]
[1725343683512,0.02786835,59012.0,59011.0,0.51858]
[1725343684314,0.05533132,59012.0,59011.0,0.42858]
[1725343684525,0.05533132,59012.0,59011.0,0.51854]
[1725343685326,0.02786566,59012.0,59011.0,0.51854]
[1725343688517,0.02786566,59012.0,59011.0,0.56932989]
[1725343690422,0.02786566,59012.0,59011.0,0.51854]
[1725343690721,0.0004,59012.0,59011.0,0.51854]
[1725343693728,0.0004,59012.0,59011.0,0.15774]
[1725343693932,0.0004,59012.0,59011.0,0.51854]
[1725343697317,0.0004,59012.0,59011.0,0.15774]
[1725343697618,0.06747501,59012.0,59011.0,1.33239822]
[1725343697926,0.00025422,59019.0,59011.0,1.33239822]
[1725343697927,0.06213148,59015.0,59014.0,0.067777]
[1725343698127,0.00025422,59019.0,59015.0,0.067775]
[1725343698320,0.00025422,59019.0,59018.0,0.518972]
[1725343698524,0.00025422,59019.0,59018.0,0.518572]
[1725343698722,0.00025422,59019.0,59018.0,0.58633428]
[1725343699429,0.00025422,59019.0,59018.0,0.518572]
[1725343700523,0.02771596,59019.0,59018.0,0.518572]
[1725343701429,0.1005841,59024.0,59018.0,0.4508]
[1725343701631,0.08392914,59019.0,59018.0,0.3608]
[1725343701926,0.08392914,59019.0,59018.0,0.36435527]
[1725343702336,0.1005841,59025.0,59024.0,0.067765]
[1725343702534,0.1005841,59025.0,59024.0,0.3612]
[1725343702535,0.02746104,59025.0,59024.0,0.3612]
[1725343702828,0.02746019,59025.0,59024.0,0.4512]
[1725343703029,0.1005841,59029.0,59024.0,0.4512]
[1725343703223,0.1005841,59029.0,59028.0,0.0904]
[1725343703534,0.12804343,59029.0,59028.0,0.0904]
[1725343703736,0.02745933,59029.0,59028.0,0.0004]
[1725343703920,0.1005841,59029.0,59028.0,0.0904]
[1725343705428,0.02745932,59029.0,59028.0,0.0004]
[1725343705629,0.02745932,59029.0,59028.0,0.0904]
[1725343706230,0.02745932,59029.0,59028.0,0.09400452]
[1725343706830,0.02745932,59029.0,59028.0,0.00400452]
[1725343706831,0.09521832,59029.0,59028.0,0.00400452]
[1725343707033,0.09521832,59029.0,59021.0,0.00025422]
[1725343707034,0.067767,59022.0,59021.0,0.00025422]
[1725343707351,0.067775,59015.0,59014.0,0.0004]
[1725343707637,0.21563432,59015.0,59014.0,0.0004]
[1725343707836,0.31623458,59015.0,59014.0,0.0004]
[1725343708027,0.37233458,59015.0,59014.0,0.00401484]
[1725343708337,0.37233458,59015.0,59011.0,0.09]
[1725343708538,0.37233458,59015.0,59009.0,0.00025422]
[1725343708539,0.067781,59010.0,59009.0,0.00025422]
[1725343708841,0.067781,59010.0,58996.0,0.0016]
[1725343708842,0.87018877,59010.0,58996.0,0.0055]
[1725343709031,0.0004,58997.0,58996.0,0.00508101]
[1725343709644,0.0004,58997.0,58996.0,0.09508101]
[1725343710140,0.0004,58997.0,58996.0,0.00508101]
[1725343714441,0.0004,58997.0,58996.0,0.00488101]
[1725343718636,0.1204,58997.0,58996.0,0.00488101]
[1725343720347,0.548996,58997.0,58996.0,0.00488101]
[1725343721950,0.188196,58997.0,58996.0,0.00488101]
[1725343722139,0.1204,58997.0,58996.0,0.00488101]
[1725343724446,0.0004,58997.0,58996.0,0.00488101]
[1725343725348,0.3612,58997.0,58996.0,0.00488101]
[1725343725555,0.428996,58997.0,58996.0,0.00488101]
[1725343726551,0.548996,58997.0,58996.0,0.00488101]
[1725343727447,0.548996,58997.0,58996.0,0.0014]
[1725343728143,1.887516,58997.0,58996.0,0.0014]
[1725343729135,0.548996,58997.0,58996.0,0.0014]
[1725343731354,0.4812,58997.0,58996.0,0.0014]
[1725343732945,0.1204,58997.0,58996.0,0.0014]
[1725343734441,0.1204,58997.0,58996.0,0.2314]
[1725343737651,0.0004,58997.0,58996.0,0.2314]
[1725343738558,0.08419002,58997.0,58996.0,0.2314]
[1725343738949,0.0004,58997.0,58996.0,0.2314]
[1725343739349,0.0004,58997.0,58996.0,0.299197]
[1725343739553,0.0004,58997.0,58996.0,0.807717]
[1725343739956,0.0004,58997.0,58996.0,1.70547928]
[1725343740260,0.0004,58997.0,58996.0,1.407717]
[1725343740652,0.00025422,59002.0,59001.0,0.067792]
[1725343740852,0.00025422,59002.0,59001.0,0.658592]
[1725343741064,0.00025422,59002.0,59001.0,1.767072]
[1725343741647,0.08379002,59010.0,59001.0,1.69928]
[1725343741959,0.08379002,59014.0,59009.0,0.297782]
[1725343742160,0.08379002,59014.0,59013.0,0.23]
[1725343742566,0.44459002,59016.0,59013.0,0.23]
[1725343742865,0.10056505,59020.0,59013.0,0.23]
[1725343742866,0.08379002,59017.0,59013.0,0.297778]
[1725343743065,0.08379002,59019.0,59016.0,0.23]
[1725343743256,0.08379002,59019.0,59013.0,0.067778]
[1725343743257,0.08379002,59019.0,59018.0,0.23]
[1725343743568,0.08404424,59020.0,59018.0,0.23]
[1725343744564,0.00025422,59020.0,59018.0,0.23]
[1725343745568,0.02746685,59019.0,59018.0,0.23]
[1725343746567,0.02746679,59019.0,59018.0,0.23]
[1725343746757,0.02746679,59019.0,59018.0,0.5908]
[1725343746961,0.02746679,59019.0,59018.0,0.23]
[1725343747460,0.00025422,59020.0,59018.0,0.23]
[1725343747766,0.02746679,59019.0,59018.0,0.23]
[1725343748266,0.02746679,59019.0,59018.0,0.2304]
[1725343748557,0.10030619,59019.0,59018.0,0.2304]
[1725343748758,0.12777298,59019.0,59018.0,0.2304]
[1725343749163,0.02746679,59019.0,59018.0,0.2304]
[1725343750354,0.02746679,59019.0,59018.0,0.298172]
[1725343751263,0.00025422,59020.0,59018.0,0.298172]
[1725343751661,0.00025422,59020.0,59018.0,0.297772]
[1725343752378,0.08351857,59019.0,59018.0,0.297772]
[1725343752561,0.00025422,59020.0,59018.0,0.297772]
[1725343752754,0.00025422,59020.0,59019.0,0.0004]
[1725343756567,0.05035469,59020.0,59019.0,0.0004]
[1725343756872,0.00025422,59020.0,59019.0,0.0004]
[1725343757968,0.06706295,59020.0,59019.0,0.0004]
[1725343758556,0.06708198,59020.0,59019.0,0.0004]
[1725343758762,0.00025422,59020.0,59019.0,0.0004]
[1725343759060,0.06708295,59020.0,59019.0,0.0004]
[1725343759262,0.00025422,59020.0,59019.0,0.0004]
[1725343760061,0.06710269,59020.0,59019.0,0.0004]
[1725343760465,0.00025422,59020.0,59019.0,0.0004]
[1725343763165,0.00025422,59020.0,59019.0,0.068171]
[1725343764079,0.00025422,59020.0,59019.0,0.158171]
[1725343764281,0.05044896,59020.0,59019.0,0.158171]
[1725343765970,0.05044896,59020.0,59019.0,0.298171]
[1725343766568,0.00025422,59020.0,59019.0,0.298171]
[1725343768669,0.08380067,59022.0,59019.0,1.33872]
[1725343768970,0.08380067,59024.0,59022.0,0.067767]
[1725343769282,0.08380067,59024.0,59023.0,0.2304]
[1725343769474,0.02746062,59024.0,59023.0,0.298166]
[1725343769680,0.3608,59028.0,59023.0,0.298166]
[1725343769976,0.02746057,59027.0,59023.0,0.068166]
[1725343770381,0.02746057,59027.0,59023.0,0.067766]
[1725343770583,0.08384851,59024.0,59023.0,0.067766]
[1725343770870,0.3608,59028.0,59023.0,0.067766]
[1725343771077,0.02746057,59027.0,59026.0,0.23]
[1725343772380,0.02746057,59027.0,59026.0,0.5908]
[1725343773472,0.10056041,59029.0,59026.0,0.5908]
[1725343773473,0.10030619,59028.0,59026.0,0.5908]
[1725343773674,0.10030619,59028.0,59027.0,0.068162]
[1725343773876,0.02746057,59028.0,59027.0,0.068162]
[1725343775683,0.06731646,59029.0,59028.0,0.067761]
[1725343775883,0.06731646,59029.0,59028.0,0.068161]
[1725343776478,0.00025422,59029.0,59028.0,0.068161]
[1725343777071,0.00025422,59029.0,59028.0,0.576401]
[1725343777679,0.00025422,59029.0,59028.0,1.176401]
[1725343777885,0.05028131,59030.0,59028.0,1.10864]
[1725343778180,0.06706224,59035.0,59034.0,0.067754]
[1725343778375,0.06706224,59036.0,59035.0,0.067753]
[1725343778578,0.06706224,59037.0,59035.0,0.298153]
[1725343778776,0.06706224,59038.0,59036.0,0.2304]
[1725343778975,0.06706224,59038.0,59037.0,0.2304]
[1725343779176,0.06706224,59038.0,59037.0,0.23]
[1725343779481,0.06706224,59039.0,59037.0,0.23]
[1725343779689,0.06706224,59039.0,59038.0,0.2304]
[1725343779981,0.02,59039.0,59038.0,0.2304]
[1725343780291,0.53237581,59039.0,59038.0,0.0004]
[1725343780491,0.47600712,59039.0,59038.0,0.0004]
[1725343780679,0.448548,59039.0,59038.0,0.0004]
[1725343781077,0.47600738,59039.0,59038.0,0.0004]
[1725343782486,0.11520701,59039.0,59038.0,0.0004]
[1725343782879,0.47600701,59039.0,59038.0,0.0004]
[1725343783285,0.47600701,59039.0,59038.0,0.2304]
[1725343783586,0.04745901,59039.0,59038.0,0.2304]
[1725343783886,0.02,59039.0,59038.0,0.2304]
[1725343784089,0.10376361,59039.0,59038.0,0.2304]
[1725343786784,0.02,59039.0,59038.0,0.2304]
[1725343787191,0.10376361,59039.0,59038.0,0.2304]
[1725343789390,0.02,59039.0,59038.0,0.2304]
[1725343790385,0.04745654,59039.0,59038.0,0.2304]
[1725343790789,0.08016897,59039.0,59038.0,0.2304]
[1725343791389,0.11520454,59039.0,59038.0,0.2304]
[1725343791591,0.11520454,59039.0,59038.0,0.0004]
[1725343793489,0.14791767,59039.0,59038.0,0.0004]
[1725343797791,0.11520454,59039.0,59038.0,0.0004]
[1725343799389,0.11520666,59039.0,59038.0,0.0004]
[1725343800494,0.11520666,59039.0,59038.0,0.2304]
[1725343801398,0.14792063,59039.0,59038.0,0.2304]
[1725343802796,0.14792032,59039.0,59038.0,0.2304]
[1725343803297,0.11520654,59039.0,59038.0,0.2304]
[1725343804098,0.11520654,59039.0,59038.0,0.0004]
[1725343804292,0.1479203,59039.0,59038.0,0.0004]
[1725343805696,0.18939421,59039.0,59038.0,0.0004]
[1725343805904,0.55019421,59039.0,59038.0,0.0004]
[1725343809611,0.68422067,59039.0,59038.0,0.0004]
[1725343811106,0.55019421,59039.0,59038.0,0.0004]
[1725343812912,0.47600654,59039.0,59038.0,0.0004]
[1725343813907,0.47600654,59039.0,59038.0,0.0904]
[1725343815107,0.50872119,59039.0,59038.0,0.0904]
[1725343815304,0.47600654,59039.0,59038.0,0.0904]
[1725343815498,0.50872119,59039.0,59038.0,0.0004]
[1725343817307,0.52272119,59039.0,59038.0,0.0014]
[1725343817508,0.53472119,59039.0,59038.0,0.0024]
[1725343819114,0.60246919,59039.0,59038.0,0.0024]
[1725343819312,0.72004386,59039.0,59038.0,0.0024]
[1725343819816,1.15210521,59039.0,59038.0,0.0024]
[1725343820013,0.64394521,59039.0,59038.0,0.0024]
[1725343820215,1.75210521,59039.0,59038.0,0.0024]
[1725343820711,1.75210521,59039.0,59038.0,0.00216001]
[1725343820712,1.80431643,59039.0,59038.0,0.00216001]
[1725343821913,1.80431643,59039.0,59038.0,0.002]
[1725343822113,2.16511643,59039.0,59038.0,0.002]
[1725343822319,2.1651185,59039.0,59038.0,0.002]
[1725343823617,1.4435185,59039.0,59038.0,0.002]
[1725343823822,2.1651185,59039.0,59038.0,0.002]
[1725343824017,2.1129108,59039.0,59038.0,0.002]
[1725343824318,2.24735139,59039.0,59038.0,0.002]
[1725343824523,2.1129108,59039.0,59038.0,0.002]
[1725343825413,2.24735139,59039.0,59038.0,0.002]
[1725343825612,2.1129108,59039.0,59038.0,0.002]
[1725343827118,2.03871728,59039.0,59038.0,0.002]
[1725343827315,2.11291094,59039.0,59038.0,0.002]
[1725343827620,1.51291094,59039.0,59038.0,0.002]
[1725343827824,1.47143431,59039.0,59038.0,0.002]
[1725343829523,1.47143431,59039.0,59030.0,0.00025422]
[1725343829524,0.067757,59031.0,59030.0,0.00025422]
[1725343829715,0.067757,59031.0,59030.0,0.00379962]
[1725343829716,0.58641828,59031.0,59030.0,0.00379962]
[1725343830015,0.61913663,59031.0,59030.0,0.00379962]
[1725343830423,0.58641828,59031.0,59030.0,0.00379962]
[1725343830611,0.58641828,59031.0,59030.0,0.09379962]
[1725343830810,0.59341828,59031.0,59030.0,0.09479962]
[1725343835616,0.59341828,59031.0,59030.0,0.00479962]
[1725343835820,0.62613668,59031.0,59030.0,0.00479962]
[1725343837319,0.26533668,59031.0,59030.0,0.00479962]
[1725343837730,0.62613668,59031.0,59030.0,0.00479962]
[1725343838316,0.7437328,59031.0,59030.0,0.00479962]
[1725343840129,0.75761494,59031.0,59030.0,0.00479962]
[1725343841228,0.89205553,59031.0,59030.0,0.00479962]
[1725343842742,0.59341828,59031.0,59030.0,0.00479962]
[1725343844549,0.62613707,59031.0,59030.0,0.00479962]
[1725343845648,0.71613707,59031.0,59030.0,0.00479962]
[1725343846646,0.71613707,59031.0,59030.0,0.00125422]
[1725343846947,0.71614235,59031.0,59030.0,0.00125422]
[1725343851544,0.78389935,59031.0,59030.0,0.00125422]
[1725343851745,0.067762,59027.0,59022.0,0.1816]
[1725343851946,0.158166,59023.0,59022.0,0.1816]
[1725343852143,0.18563146,59023.0,59022.0,0.1816]
[1725343853053,0.18563146,59023.0,59022.0,0.1856]
[1725343853253,0.18563146,59023.0,59022.0,0.1876]
[1725343853956,0.54643146,59023.0,59022.0,0.1876]
[1725343854545,0.54643146,59023.0,59022.0,0.19114133]
[1725343855744,0.54643146,59023.0,59017.0,0.09025422]
[1725343855745,0.66643146,59023.0,59017.0,0.00025422]
[1725343855944,0.428972,59018.0,59017.0,0.00025422]
[1725343856150,0.21563746,59018.0,59017.0,0.00025422]
[1725343856345,0.21563746,59018.0,59017.0,0.00372683]
[1725343856648,0.21563746,59018.0,59017.0,0.00025422]
[1725343856853,0.02786546,59018.0,59017.0,0.10025422]
[1725343857058,0.02786546,59018.0,59017.0,0.10825422]
[1725343857655,0.03586546,59018.0,59017.0,0.10125422]
[1725343858756,0.03586546,59018.0,59017.0,0.09125422]
[1725343858945,0.04186546,59018.0,59017.0,0.09225422]
[1725343859750,0.17186546,59018.0,59017.0,0.00225422]
[1725343860346,0.32963746,59018.0,59017.0,0.00225422]
[1725343860754,0.79093544,59018.0,59017.0,0.00225422]
[1725343861059,0.84803544,59018.0,59017.0,0.00225422]
[1725343861357,1.95635544,59018.0,59017.0,0.00225422]
[1725343861949,0.78026344,59018.0,59017.0,0.00225422]
[1725343864754,0.7802712,59018.0,59017.0,0.00225422]
[1725343865959,0.74754281,59018.0,59017.0,0.00225422]
[1725343869766,0.81531481,59018.0,59017.0,0.00225422]
[1725343870959,1.92363481,59018.0,59017.0,0.00225422]
[1725343874166,1.92363576,59018.0,59017.0,0.00225422]
[1725343875367,1.95636528,59018.0,59017.0,0.00225422]
[1725343877060,0.69027328,59018.0,59017.0,0.00225422]
[1725343877263,0.63317328,59018.0,59017.0,0.00225422]
[1725343877467,0.60044376,59018.0,59017.0,0.00225422]